bitfinex-derivatives/quotes_BTCF0:USTF0_20260111
["timestamp","ask_amount","ask_price","bid_price","bid_amount"]
[1768144413964,0.18474111,90946.0,90930.0,0.15098105]
[1768144414274,0.09118111,90945.0,90930.0,0.15098105]
[1768144414461,0.1758372,90957.0,90935.0,0.15098105]
[1768144414773,0.09118111,90951.0,90931.0,0.011011]
[1768144414970,0.09118111,90949.0,90931.0,0.011011]
[1768144415164,0.09118111,90949.0,90926.0,0.05087576]
[1768144415165,0.09118111,90949.0,90939.0,0.15098105]
[1768144415371,0.09356,90951.0,90939.0,0.15098105]
[1768144415772,0.09356,90951.0,90939.0,0.16199105]
[1768144416160,0.09118111,90955.0,90941.0,0.01101]
[1768144416673,0.09118111,90955.0,90939.0,0.15098105]
[1768144416865,0.09118111,90955.0,90940.0,0.01101]
[1768144417169,0.09118111,90955.0,90941.0,0.01101]
[1768144418270,0.09118111,90955.0,90904.0,0.055074]
[1768144418271,0.09118111,90929.0,90908.0,0.08731377]
[1768144418475,0.09118111,90922.0,90908.0,0.08731377]
[1768144418666,0.09118111,90916.0,90897.0,0.011015]
[1768144419374,0.09118111,90916.0,90896.0,0.09356]
[1768144419574,0.011013,90913.0,90896.0,0.09356]
[1768144420177,0.10219411,90914.0,90896.0,0.09356]
[1768144420368,0.09719411,90914.0,90896.0,0.09356]
[1768144420569,0.011014,90912.0,90896.0,0.09356]
[1768144420768,0.08618111,90914.0,90905.0,2.8e-07]
[1768144421076,0.011014,90908.0,90905.0,2.8e-07]
[1768144421275,0.011014,90911.0,90905.0,2.8e-07]
[1768144421477,0.006014,90911.0,90905.0,2.8e-07]
[1768144421870,0.09219411,90914.0,90905.0,2.8e-07]
[1768144422477,0.011014,90910.0,90905.0,2.8e-07]
[1768144422684,0.08118111,90914.0,90905.0,2.8e-07]
[1768144423684,0.011013,90913.0,90905.0,2.8e-07]
[1768144423877,0.00551514,90913.0,90905.0,2.8e-07]
[1768144424680,0.08118111,90914.0,90905.0,2.8e-07]
[1768144426382,0.011014,90912.0,90905.0,2.8e-07]
[1768144426876,0.08118111,90914.0,90905.0,2.8e-07]
[1768144427076,0.09118111,90913.0,90905.0,2.8e-07]
[1768144428075,0.09118111,90928.0,90908.0,0.07040003]
[1768144428276,0.08465609,90933.0,90916.0,0.011013]
[1768144428577,0.08465609,90933.0,90911.0,0.07088739]
[1768144428578,0.1758372,90933.0,90911.0,0.07088739]
[1768144428780,0.09118111,90933.0,90913.0,0.07088739]
[1768144429482,0.09118111,90933.0,90922.0,0.011012]
[1768144429982,0.01101,90944.0,90906.0,0.104574]
[1768144429983,0.09118111,90939.0,90927.0,0.011012]
[1768144430184,0.08876213,90939.0,90927.0,0.011012]
[1768144430385,0.08876213,90939.0,90929.0,0.011011]
[1768144430587,0.08876213,90939.0,90921.0,0.07066647]
[1768144430786,0.09356,90945.0,90922.0,0.07123599]
[1768144431083,0.17821609,90945.0,90922.0,0.07123599]
[1768144431286,0.17821609,90945.0,90930.0,0.011011]
[1768144431480,0.17821609,90956.0,90932.0,0.07123599]
[1768144431683,0.011006,90975.0,90937.0,0.07236033]
[1768144431684,0.09356,90960.0,90937.0,0.07236033]
[1768144431876,0.17271944,90961.0,90940.0,0.01101]
[1768144432076,0.104568,90961.0,90940.0,0.01101]
[1768144432288,0.09118111,90960.0,90940.0,0.01101]
[1768144433385,0.09118111,90957.0,90932.0,0.07785698]
[1768144433587,0.09118111,90957.0,90939.0,0.01101]
[1768144433981,0.08465609,90956.0,90939.0,0.01101]
[1768144434185,0.09118111,90952.0,90935.0,0.011011]
[1768144434380,0.09356,90961.0,90931.0,0.011011]
[1768144434381,0.08465609,90947.0,90931.0,0.011011]
[1768144434585,0.09118111,90946.0,90932.0,0.09356]
[1768144434788,0.08465609,90945.0,90932.0,0.09356]
[1768144434987,0.09118111,90944.0,90932.0,0.09356]
[1768144435287,0.09118111,90943.0,90932.0,0.09356]
[1768144435590,0.08465609,90942.0,90932.0,0.09356]
[1768144435891,0.011007,90962.0,90927.0,0.09356]
[1768144435892,0.1758372,90938.0,90927.0,0.09356]
[1768144436388,0.09118111,90938.0,90927.0,0.09356]
[1768144436987,0.09118111,90938.0,90928.0,0.10997168]
[1768144437188,0.09118111,90938.0,90929.0,0.011011]
[1768144437884,0.09118111,90938.0,90927.0,0.09356]
[1768144438283,0.09118111,90938.0,90928.0,0.10997047]
[1768144439087,0.08465609,90942.0,90928.0,0.10997047]
[1768144440390,0.08465609,90942.0,90930.0,0.011011]
[1768144440592,0.08465609,90942.0,90932.0,0.011011]
[1768144440794,0.09118111,90944.0,90932.0,0.011011]
[1768144441491,0.09118111,90944.0,90927.0,0.09356]
[1768144441696,0.09118111,90944.0,90933.0,0.011011]
[1768144441993,0.09118111,90944.0,90930.0,0.011011]
[1768144442588,0.09118111,90944.0,90934.0,0.011011]
[1768144443888,0.09118111,90944.0,90927.0,0.09356]
[1768144444092,0.09489249,90950.0,90931.0,0.08891897]
[1768144444394,0.09489249,90950.0,90933.0,0.08891897]
[1768144444591,0.18046572,90956.0,90941.0,0.01101]
[1768144444788,0.09489249,90956.0,90945.0,0.011009]
[1768144445391,0.09489249,90956.0,90941.0,0.01101]
[1768144445795,0.09489249,90956.0,90943.0,0.01101]
[1768144447597,0.09489249,90956.0,90937.0,0.18291749]
[1768144447991,0.09489249,90956.0,90948.0,0.011009]
[1768144448197,0.08939705,90956.0,90939.0,0.09735146]
[1768144448595,0.08939705,90956.0,90940.0,0.10995112]
[1768144448801,0.08939705,90956.0,90946.0,0.011009]
[1768144451597,0.08939705,90956.0,90950.0,0.011009]
[1768144451799,0.08939705,90956.0,90939.0,0.08634146]
[1768144451997,0.08939705,90956.0,90940.0,0.10994931]
[1768144452193,0.09138877,90955.0,90940.0,0.10994931]
[1768144452398,0.17942609,90955.0,90943.0,0.01101]
[1768144452901,0.09138877,90954.0,90943.0,0.01101]
[1768144453900,0.09138877,90953.0,90943.0,0.01101]
[1768144454199,0.17942609,90953.0,90943.0,0.01101]
[1768144454390,0.09138877,90952.0,90943.0,0.01101]
[1768144455496,0.09138877,90952.0,90937.0,0.09356]
[1768144455800,0.09138877,90952.0,90938.0,0.10995354]
[1768144457595,0.09138877,90952.0,90945.0,0.011009]
[1768144460200,0.09138877,90952.0,90937.0,0.09356]
[1768144460201,0.09138877,90952.0,90947.0,0.011009]
[1768144460897,7.7e-07,90957.0,90938.0,0.08634146]
[1768144461201,7.7e-07,90957.0,90952.0,0.011009]
[1768144461995,0.08803809,90957.0,90952.0,0.011009]
[1768144462202,0.08803732,90957.0,90952.0,0.011009]
[1768144462903,0.09138877,90956.0,90949.0,0.011009]
[1768144464398,0.09138877,90956.0,90946.0,0.011009]
[1768144464599,0.08803732,90953.0,90945.0,0.0172855]
[1768144465408,0.08803732,90951.0,90945.0,0.0172855]
[1768144465610,0.08803732,90951.0,90940.0,0.01101]
[1768144466105,0.08803732,90951.0,90941.0,0.10995294]
[1768144466309,0.08803732,90951.0,90932.0,0.18119656]
[1768144466310,0.09138877,90925.0,90893.0,0.09494738]
[1768144466495,0.08803732,90918.0,90895.0,0.09356]
[1768144466695,0.08803732,90911.0,90895.0,0.09356]
[1768144466895,0.09138877,90908.0,90895.0,0.09356]
[1768144467613,0.09138877,90908.0,90896.0,0.1099874]
[1768144469208,0.08803732,90912.0,90896.0,0.1099874]
[1768144470203,0.08803732,90912.0,90904.0,0.00118147]
[1768144471311,0.09138877,90911.0,90908.0,0.00118147]
[1768144471900,0.09138877,90905.0,90879.0,0.08634146]
[1768144472101,0.09138877,90900.0,90889.0,0.09356]
[1768144472514,0.08589091,90900.0,90889.0,0.09356]
[1768144473016,0.09690591,90900.0,90889.0,0.09356]
[1768144473214,8.243e-05,90899.0,90889.0,0.09356]
[1768144473412,0.011016,90894.0,90888.0,5.7e-07]
[1768144473613,8.243e-05,90899.0,90886.0,5.7e-07]
[1768144473815,0.011016,90895.0,90886.0,5.7e-07]
[1768144474215,0.01109743,90899.0,90886.0,5.7e-07]
[1768144474420,0.09407644,90898.0,90886.0,5.7e-07]
[1768144476109,8.243e-05,90899.0,90888.0,0.09730383]
[1768144476314,0.09407644,90910.0,90889.0,0.09730383]
[1768144476825,0.09407644,90910.0,90890.0,0.11002068]
[1768144477020,0.09407644,90910.0,90891.0,0.09730383]
[1768144477220,0.09407644,90916.0,90892.0,0.09730383]
[1768144477721,0.09407644,90916.0,90893.0,0.1100116]
[1768144477909,0.09407644,90907.0,90893.0,0.1100116]
[1768144478114,0.09356,90917.0,90893.0,0.1100116]
[1768144478115,0.09356,90917.0,90897.0,0.011015]
[1768144478520,0.09356,90917.0,90893.0,0.09730383]
[1768144478718,0.011014,90910.0,90893.0,0.09730383]
[1768144479016,0.011013,90916.0,90893.0,0.10831983]
[1768144479221,0.011013,90913.0,90893.0,0.09730383]
[1768144479422,0.011013,90913.0,90894.0,0.09356]
[1768144479616,0.09356,90917.0,90894.0,0.09356]
[1768144479819,0.09356,90917.0,90902.0,0.011015]
[1768144480028,0.18763644,90917.0,90902.0,0.011015]
[1768144481216,0.18763644,90917.0,90894.0,0.09356]
[1768144481523,0.09407644,90917.0,90895.0,0.09730383]
[1768144481727,0.09407644,90917.0,90898.0,0.09730383]
[1768144481929,0.08907644,90917.0,90898.0,0.09730383]
[1768144482226,0.08407644,90917.0,90898.0,0.09730383]
[1768144482524,0.08407644,90917.0,90899.0,0.11000434]
[1768144482924,0.08407644,90917.0,90902.0,0.011015]
[1768144483723,0.09508944,90917.0,90894.0,0.19086383]
[1768144483923,0.08407644,90917.0,90897.0,0.011015]
[1768144484127,0.08407644,90917.0,90899.0,0.1099995]
[1768144484419,0.08407644,90917.0,90897.0,0.011015]
[1768144484625,0.08407644,90917.0,90899.0,0.011015]
[1768144485019,0.08407644,90917.0,90895.0,0.011015]
[1768144485421,0.08407644,90917.0,90900.0,0.11000253]
[1768144485616,0.18767644,90924.0,90900.0,0.09730383]
[1768144485821,0.09407644,90924.0,90905.0,0.011014]
[1768144486314,0.09407644,90924.0,90907.0,0.011014]
[1768144486721,0.09407644,90929.0,90909.0,0.011014]
[1768144486920,0.00241978,90918.0,90909.0,0.10831783]
[1768144487120,0.00241978,90918.0,90909.0,0.09730383]
[1768144487317,0.00241978,90918.0,90910.0,0.10999224]
[1768144487723,0.00241978,90918.0,90908.0,0.011014]
[1768144488130,0.00241978,90918.0,90909.0,0.10999406]
[1768144488821,0.09099957,90929.0,90909.0,0.011014]
[1768144489526,0.09099957,90929.0,90910.0,0.10999466]
[1768144490233,0.09099957,90929.0,90913.0,0.011013]
[1768144491333,0.09099957,90929.0,90915.0,0.011013]
[1768144492425,0.0936,90930.0,90915.0,0.011013]
[1768144492732,0.0936,90930.0,90914.0,0.011013]
[1768144493333,0.0936,90937.0,90918.0,0.09730383]
[1768144493534,0.01101,90940.0,90918.0,0.09730383]
[1768144493931,0.09407644,90941.0,90923.0,0.011012]
[1768144494636,0.09407644,90941.0,90918.0,0.09730383]
[1768144494832,0.09407644,90941.0,90919.0,0.09730383]
[1768144495030,0.09407644,90941.0,90921.0,0.011012]
[1768144495233,0.09407644,90941.0,90919.0,0.09730383]
[1768144495539,0.09407644,90939.0,90924.0,0.011012]
[1768144496232,0.09407644,90939.0,90918.0,0.09636732]
[1768144496434,0.09407644,90939.0,90923.0,0.011012]
[1768144497433,0.09407644,90939.0,90925.0,0.011012]
[1768144497637,0.10508544,90950.0,90929.0,0.16217822]
[1768144497828,0.09649542,90948.0,90929.0,0.16217822]
[1768144498333,0.09649542,90948.0,90931.0,0.011011]
[1768144498637,0.09649542,90948.0,90929.0,0.15116722]
[1768144498840,0.10508544,90946.0,90927.0,0.09356]
[1768144499041,0.09407644,90943.0,90927.0,0.09356]
[1768144499337,0.09407644,90943.0,90928.0,0.10996321]
[1768144499733,0.09407644,90939.0,90922.0,0.011012]
[1768144499936,0.09407644,90939.0,90924.0,0.011012]
[1768144500138,0.09407644,90939.0,90923.0,0.104572]
[1768144500332,0.09407644,90939.0,90925.0,0.011012]
[1768144500525,0.09407644,90939.0,90923.0,0.09356]
[1768144500726,0.09407644,90939.0,90924.0,0.12098005]
[1768144500930,0.09407644,90939.0,90920.0,0.15116722]
[1768144500931,0.09407644,90937.0,90910.0,1.29599837]
[1768144501126,0.09407644,90935.0,90911.0,0.09356]
[1768144501431,0.09407644,90935.0,90924.0,0.10997349]
[1768144501633,0.09407644,90935.0,90924.0,0.09356]
[1768144503040,0.09407644,90935.0,90915.0,0.19367115]
[1768144503224,0.09407644,90935.0,90920.0,0.15116722]
[1768144503426,0.09407644,90935.0,90922.0,0.10997531]
[1768144503627,0.09407644,90935.0,90920.0,0.15116722]
[1768144503837,0.10508744,90935.0,90920.0,0.15116722]
[1768144504044,0.09407644,90935.0,90921.0,0.10997652]
[1768144504338,0.10907347,90925.0,90907.0,0.09356]
[1768144504934,0.09806147,90925.0,90908.0,0.011014]
[1768144505440,0.09806147,90925.0,90908.0,0.12100564]
[1768144505624,0.09806147,90925.0,90911.0,0.011014]
[1768144506232,0.09806147,90925.0,90910.0,0.15116722]
[1768144506432,0.09806147,90925.0,90908.0,0.011014]
[1768144506845,0.09806147,90925.0,90909.0,0.10999103]
[1768144507733,0.09806147,90925.0,90912.0,0.011013]
[1768144509644,0.09806147,90925.0,90907.0,0.09356]
[1768144509850,0.09806147,90925.0,90909.0,0.011014]
[1768144510635,0.09806147,90925.0,90910.0,0.10998861]
[1768144511035,0.011012,90922.0,90910.0,0.10998861]
[1768144511244,0.011012,90923.0,90910.0,0.10998861]
[1768144516049,0.09806147,90925.0,90910.0,0.10998861]
[1768144516651,0.011012,90922.0,90910.0,0.10998861]
[1768144517035,0.09806147,90925.0,90910.0,0.10998861]
[1768144517036,0.011012,90921.0,90910.0,0.10998861]
[1768144517352,0.09806147,90925.0,90910.0,0.10998861]
[1768144518343,0.011012,90921.0,90910.0,0.10998861]
[1768144518649,0.011013,90919.0,90910.0,0.10998861]
[1768144518846,0.15116722,90920.0,90899.0,0.09404169]
[1768144519048,0.011014,90911.0,90900.0,0.09356]
[1768144519355,0.011014,90911.0,90901.0,0.10999224]
[1768144519549,0.011014,90911.0,90900.0,0.09356]
[1768144519750,0.011014,90911.0,90901.0,0.10999224]
[1768144521154,0.011014,90910.0,90901.0,0.10999224]
[1768144521961,0.09881794,90919.0,90901.0,0.10999224]
[1768144522258,0.00590384,90906.0,90900.0,0.09356]
[1768144523053,0.011014,90909.0,90900.0,0.09356]
[1768144523563,0.15116722,90911.0,90891.0,0.18760169]
[1768144523861,0.15116722,90911.0,90894.0,0.11000737]
[1768144524356,0.011013,90914.0,90891.0,0.18760169]
[1768144524357,0.011014,90904.0,90891.0,0.18760169]
[1768144524557,0.011014,90904.0,90892.0,0.11000979]
[1768144524748,0.011015,90902.0,90892.0,0.11000979]
[1768144525760,0.011015,90903.0,90890.0,0.18659977]
[1768144525959,0.011015,90903.0,90891.0,0.11001342]
[1768144526465,0.011015,90903.0,90891.0,0.20305319]
[1768144526952,0.011014,90909.0,90891.0,0.20305319]
[1768144527554,0.16218122,90910.0,90891.0,0.20305319]
[1768144527752,0.15116722,90910.0,90891.0,0.20305319]
[1768144527952,0.15116722,90910.0,90893.0,0.011016]
[1768144528766,0.15116722,90910.0,90894.0,0.18708146]
[1768144528961,0.15116722,90910.0,90895.0,0.011016]
[1768144529666,0.09890689,90964.0,90890.0,0.24472722]
[1768144529667,0.0936,90909.0,90891.0,0.18708146]
[1768144529875,0.0936,90908.0,90895.0,0.011015]
[1768144530172,0.0936,90908.0,90893.0,0.011016]
[1768144530956,0.0936,90908.0,90895.0,0.011016]
[1768144531866,0.0936,90908.0,90895.0,0.011015]
[1768144533971,0.0936,90908.0,90892.0,0.09303977]
[1768144535469,0.0936,90908.0,90897.0,0.011015]
[1768144535967,0.0936,90908.0,90894.0,0.09441075]
[1768144536167,0.0936,90908.0,90897.0,0.011015]
[1768144538173,0.0936,90908.0,90896.0,0.011015]
[1768144538876,0.0936,90908.0,90890.0,0.24557797]
[1768144539173,0.0936,90908.0,90890.0,0.34307064]
[1768144539376,0.0936,90908.0,90890.0,0.19190342]
[1768144539975,0.011014,90907.0,90890.0,0.19190342]
[1768144540377,0.0936,90908.0,90892.0,0.09441075]
[1768144540681,0.104614,90908.0,90892.0,0.19190342]
[1768144541064,0.104614,90908.0,90892.0,0.09441075]
[1768144541976,0.011014,90905.0,90892.0,0.09441075]
[1768144543877,0.011015,90903.0,90892.0,0.09441075]
[1768144544174,0.011015,90902.0,90892.0,0.09441075]
[1768144545677,0.011014,90905.0,90893.0,0.09441075]
[1768144546178,0.011015,90904.0,90893.0,0.09441075]
[1768144546979,0.011014,90906.0,90893.0,0.09441075]
[1768144547176,0.011013,90918.0,90910.0,0.09441075]
[1768144547383,0.0936,90925.0,90911.0,0.19190342]
[1768144547972,0.011013,90918.0,90911.0,0.09441075]
[1768144548575,0.011012,90921.0,90911.0,0.09441075]
[1768144548981,0.006012,90921.0,90911.0,0.09441075]
[1768144550480,0.0936,90925.0,90906.0,0.011014]
[1768144551380,0.011012,90922.0,90906.0,0.011014]
[1768144551578,0.011012,90920.0,90906.0,0.011014]
[1768144551780,0.011012,90923.0,90907.0,0.011014]
[1768144552080,0.0936,90925.0,90909.0,0.011014]
[1768144552681,0.011012,90924.0,90909.0,0.011014]
[1768144553884,0.011012,90924.0,90906.0,0.19190342]
[1768144554086,0.011012,90923.0,90907.0,0.09441075]
[1768144554383,0.011012,90922.0,90907.0,0.09441075]
[1768144555283,0.011012,90923.0,90908.0,0.10542475]
[1768144555486,0.011012,90923.0,90909.0,0.09441075]
[1768144555886,0.011012,90922.0,90909.0,0.19190342]
[1768144556074,0.011012,90921.0,90909.0,0.19190342]
[1768144557381,0.0936,90925.0,90911.0,0.09441075]
[1768144557582,0.0936,90925.0,90912.0,0.09749267]
[1768144557785,0.0936,90925.0,90913.0,0.09441075]
[1768144557986,0.011012,90924.0,90913.0,0.09441075]
[1768144558786,0.09367752,90940.0,90918.0,0.09441075]
[1768144559081,0.011011,90935.0,90919.0,0.09441075]
[1768144559684,0.0936,90939.0,90919.0,0.09441075]
[1768144560287,0.011011,90933.0,90919.0,0.09441075]
[1768144560483,0.10461,90939.0,90924.0,0.19190342]
[1768144560677,0.0936,90939.0,90924.0,0.19190342]
[1768144560877,0.0936,90939.0,90924.0,0.09441075]
[1768144561290,0.011011,90934.0,90924.0,0.09441075]
[1768144561776,0.0936,90939.0,90924.0,0.09441075]
[1768144562084,0.0936,90939.0,90927.0,0.011012]
[1768144562583,0.0936,90939.0,90924.0,0.09441075]
[1768144562780,0.0936,90939.0,90928.0,0.011011]
[1768144562978,0.0936,90939.0,90925.0,0.011012]
[1768144563776,0.0936,90939.0,90928.0,0.011011]
[1768144563977,0.0936,90939.0,90930.0,0.1051777]
[1768144564182,0.0936,90939.0,90930.0,0.20398082]
[1768144564375,0.0936,90939.0,90931.0,0.0941667]
[1768144565387,0.0936,90939.0,90933.0,0.0941667]
[1768144565576,0.104609,90946.0,90934.0,0.0941667]
[1768144565880,0.011008,90953.0,90934.0,0.0941667]
[1768144566087,0.09356,90949.0,90934.0,0.19296982]
[1768144566274,0.09356,90949.0,90936.0,0.19296982]
[1768144566989,0.09356,90949.0,90937.0,0.19296982]
[1768144567185,0.01342798,90948.0,90940.0,0.0941667]
[1768144567491,0.01101,90945.0,90935.0,0.09880312]
[1768144567785,0.00241898,90948.0,90935.0,0.09880312]
[1768144569390,0.011009,90947.0,90935.0,0.19776921]
[1768144569585,0.00241898,90948.0,90935.0,0.19776921]
[1768144570287,0.01342798,90948.0,90932.0,0.0989937]
[1768144570486,0.00241898,90948.0,90932.0,0.0989937]
[1768144570694,0.00241898,90948.0,90932.0,0.19795979]
[1768144570888,0.01342798,90948.0,90933.0,0.0989937]
[1768144571193,0.01342798,90948.0,90934.0,0.0989937]
[1768144571784,0.00241898,90948.0,90934.0,0.19795979]
[1768144571990,0.00241898,90948.0,90935.0,0.0989937]
[1768144572188,0.00241898,90948.0,90935.0,0.19795979]
[1768144572490,0.00241898,90948.0,90936.0,0.20897079]
[1768144572690,0.00241898,90948.0,90937.0,0.0939937]
[1768144573395,0.00241898,90948.0,90938.0,0.09896609]
[1768144574291,0.00241898,90948.0,90938.0,0.09396609]
[1768144575497,0.00241898,90948.0,90939.0,0.0939937]
[1768144576596,0.09356,90949.0,90940.0,0.10497609]
[1768144577893,0.09356,90955.0,90942.0,0.19795979]
[1768144578999,0.09356,90955.0,90943.0,0.19795979]
[1768144579689,0.09356,90955.0,90946.0,0.09896609]
[1768144580000,0.09356,90962.0,90948.0,0.09896609]
[1768144580202,0.09356,90962.0,90948.0,0.19795979]
[1768144580393,0.011007,90967.0,90949.0,0.0989937]
[1768144580693,0.09356,90966.0,90949.0,0.19795979]
[1768144581503,0.1842211,90966.0,90949.0,0.09896609]
[1768144581690,0.0906611,90965.0,90946.0,0.0989937]
[1768144581891,0.011007,90963.0,90946.0,0.1100027]
[1768144582197,0.0716681,90965.0,90946.0,0.1100027]
[1768144582410,0.09356,90966.0,90948.0,0.19795979]
[1768144582596,0.09356,90966.0,90951.0,0.19795979]
[1768144583096,0.011007,90967.0,90951.0,0.19795979]
[1768144583302,0.09356,90965.0,90951.0,0.10997509]
[1768144583503,0.09356,90965.0,90951.0,0.09896609]
[1768144583802,0.011007,90962.0,90947.0,0.1100027]
[1768144584394,0.09356,90965.0,90946.0,0.09896609]
[1768144584395,0.011008,90961.0,90946.0,0.09896609]
[1768144584594,0.011007,90963.0,90948.0,0.011009]
[1768144587906,0.011007,90963.0,90946.0,0.19795979]
[1768144588208,0.011007,90963.0,90947.0,0.0989937]
[1768144589006,0.18247253,90964.0,90945.0,0.00549786]
[1768144589210,0.011008,90954.0,90945.0,0.00549786]
[1768144589709,0.011008,90955.0,90945.0,0.00549786]
[1768144590107,0.011008,90955.0,90945.0,0.20345765]
[1768144590301,0.0906611,90962.0,90945.0,0.00549786]
[1768144590701,0.011008,90956.0,90945.0,0.00549786]
[1768144592012,0.011008,90959.0,90945.0,0.00549786]
[1768144592213,0.011008,90959.0,90946.0,0.0989937]
[1768144593310,0.1842211,90965.0,90946.0,0.19795979]
[1768144593713,0.011008,90958.0,90946.0,0.19795979]
[1768144594111,0.011008,90958.0,90947.0,0.18988813]
[1768144594314,0.011008,90958.0,90948.0,0.18988813]
[1768144594703,0.011008,90954.0,90945.0,0.09822227]
[1768144594908,0.011008,90954.0,90945.0,0.00549786]
[1768144595105,0.011009,90951.0,90945.0,0.00549786]
[1768144595512,0.011008,90954.0,90945.0,0.00549786]
[1768144596208,0.011009,90946.0,90945.0,8.6e-07]
[1768144596407,0.10706324,90954.0,90937.0,0.09716372]
[1768144596817,0.011009,90946.0,90937.0,0.09716372]
[1768144597711,0.01101,90944.0,90937.0,0.09716372]
[1768144598714,0.09718884,90958.0,90939.0,0.18988813]
[1768144599019,0.011009,90947.0,90939.0,0.18988813]
[1768144599816,0.011009,90951.0,90939.0,0.18988813]
[1768144600014,0.011009,90949.0,90939.0,0.18988813]
[1768144600420,0.011009,90951.0,90939.0,0.18988813]
[1768144600720,0.011008,90955.0,90942.0,0.09272441]
[1768144600913,0.011008,90955.0,90942.0,0.18988813]
[1768144601419,0.011008,90955.0,90944.0,0.18988813]
[1768144601615,0.011008,90957.0,90944.0,0.18988813]
[1768144603014,0.011008,90960.0,90944.0,0.18988813]
[1768144604023,0.011008,90960.0,90946.0,0.18988813]
[1768144604220,0.24717283,90970.0,90951.0,0.18988813]
[1768144604411,0.10819484,90975.0,90953.0,0.09716372]
[1768144604412,0.09356,90969.0,90953.0,0.09716372]
[1768144604616,0.011007,90964.0,90954.0,0.09272441]
[1768144604814,0.15111759,90970.0,90955.0,0.09716372]
[1768144605020,0.011007,90962.0,90951.0,0.09272441]
[1768144605219,0.011007,90963.0,90951.0,0.09272441]
[1768144605422,0.011008,90961.0,90951.0,0.09272441]
[1768144607124,0.09356,90965.0,90951.0,0.09272441]
[1768144607628,0.09356,90965.0,90951.0,0.18988813]
[1768144610228,0.09905665,90965.0,90951.0,0.18988813]
[1768144610434,0.11006365,90965.0,90951.0,0.18988813]
[1768144610729,0.09905665,90965.0,90954.0,0.18988813]
[1768144611122,0.00549665,90965.0,90955.0,0.18988813]
[1768144611932,0.09356,90967.0,90958.0,0.18988813]
[1768144614732,0.011007,90966.0,90958.0,0.18988813]
[1768144615033,0.011007,90966.0,90958.0,0.09716372]
[1768144615332,0.011007,90966.0,90954.0,0.09272441]
[1768144615932,0.011007,90966.0,90954.0,0.10373241]
[1768144616233,0.09356,90967.0,90954.0,0.10373241]
[1768144616733,0.09356,90967.0,90954.0,0.20089613]
[1768144616934,0.09356,90967.0,90958.0,0.18988813]
[1768144617124,0.09356,90967.0,90959.0,0.18988813]
[1768144618033,0.09356,90971.0,90960.0,0.20089613]
[1768144618235,0.011006,90974.0,90960.0,0.20089613]
[1768144618434,0.12615427,90973.0,90960.0,0.20089613]
[1768144618733,0.09356,90973.0,90960.0,0.20089613]
[1768144618934,0.09356,90973.0,90960.0,0.18988813]
[1768144619332,0.09356,90973.0,90961.0,0.09716372]
[1768144619731,0.09356,90973.0,90963.0,0.09716372]
[1768144620029,0.09356,90973.0,90964.0,0.09716372]
[1768144621236,0.09356,90973.0,90965.0,0.09716372]
[1768144623334,0.09597818,90978.0,90969.0,0.09272441]
[1768144623532,0.09597818,90978.0,90971.0,0.09716372]
[1768144623735,0.09597818,90978.0,90955.0,0.09356]
[1768144623736,0.011004,90994.0,90978.0,0.09345936]
[1768144623927,0.011004,90994.0,90981.0,0.18945423]
[1768144624121,0.011003,90997.0,90981.0,0.18945423]
[1768144624729,0.011003,90995.0,90981.0,0.18945423]
[1768144625127,0.24651635,91000.0,90981.0,0.18945423]
[1768144625324,0.011003,90996.0,90981.0,0.18945423]
[1768144625525,0.09539876,90999.0,90981.0,0.09599487]
[1768144626423,0.011003,90996.0,90981.0,0.09599487]
[1768144626724,0.011003,90996.0,90982.0,0.09599487]
[1768144627424,0.10640176,90999.0,90982.0,0.09599487]
[1768144627736,0.09539876,90999.0,90982.0,0.09599487]
[1768144627934,0.011003,90996.0,90982.0,0.09599487]
[1768144628136,0.09539876,90999.0,90982.0,0.09599487]
[1768144628335,0.011004,90993.0,90982.0,0.09599487]
[1768144628526,0.011003,90996.0,90982.0,0.09599487]
[1768144629932,0.011003,90999.0,90983.0,0.09280426]
[1768144630227,0.18799379,91003.0,90985.0,0.09280426]
[1768144630419,0.09356,91003.0,90987.0,0.09280426]
[1768144631637,0.011003,90999.0,90987.0,0.09280426]
[1768144632235,0.011003,90997.0,90987.0,0.09280426]
[1768144632434,0.09356,91003.0,90987.0,0.09280426]
[1768144632640,0.104563,91003.0,90990.0,0.15111759]
[1768144632940,0.011003,91001.0,90991.0,0.09280426]
[1768144633530,0.011003,91001.0,90990.0,0.24776808]
[1768144633531,0.011003,91001.0,90992.0,0.18945475]
[1768144633731,0.09356,91003.0,90992.0,0.18945475]
[1768144633732,0.09356,91003.0,90993.0,2.6e-07]
[1768144633932,0.011003,91000.0,90985.0,0.09665049]
[1768144635026,0.011003,91002.0,90985.0,0.10765549]
[1768144635440,0.011003,91000.0,90985.0,0.10765549]
[1768144635634,0.011003,90996.0,90985.0,0.09665049]
[1768144635939,0.011003,90999.0,90988.0,0.09280426]
[1768144636135,0.09356,91003.0,90989.0,0.09665049]
[1768144636136,0.011003,90996.0,90989.0,0.09665049]
[1768144636940,0.09356,91003.0,90989.0,0.09665049]
[1768144637132,0.011003,90997.0,90989.0,0.09665049]
[1768144637746,0.011004,90994.0,90989.0,4.9e-07]
[1768144638038,0.011003,90997.0,90980.0,0.16212259]
[1768144638239,0.011003,90997.0,90981.0,0.09280426]
[1768144639141,0.09356,91003.0,90968.0,0.011007]
[1768144639142,0.15111759,90991.0,90968.0,0.011007]
[1768144639438,0.011005,90984.0,90970.0,0.26102098]
[1768144639834,0.011004,90987.0,90971.0,0.09665049]
[1768144640140,0.011004,90987.0,90972.0,0.09665049]
[1768144640443,0.011004,90989.0,90972.0,0.09665049]
[1768144640741,0.011004,90989.0,90973.0,0.10991547]
[1768144641041,0.011004,90993.0,90976.0,0.09665049]
[1768144641244,0.011004,90993.0,90977.0,0.09665049]
[1768144641433,0.10571962,90996.0,90977.0,0.10765649]
[1768144642235,0.09471662,90996.0,90977.0,0.09665049]
[1768144642436,0.011004,90993.0,90977.0,0.09665049]
[1768144643541,0.011004,90992.0,90977.0,0.09665049]
[1768144643847,0.09471662,90993.0,90975.0,0.09352]
[1768144644040,0.09471662,90993.0,90965.0,0.10214714]
[1768144644041,0.09471662,90985.0,90965.0,0.10214714]
[1768144644345,0.09471662,90980.0,90965.0,0.00549665]
[1768144644543,0.24583421,90980.0,90965.0,0.00549665]
[1768144644841,0.24583421,90980.0,90965.0,0.01650365]
[1768144645048,0.09471662,90980.0,90965.0,0.01650365]
[1768144648346,0.18915041,90982.0,90965.0,0.00549665]
[1768144648547,0.18915041,90982.0,90966.0,0.011007]
[1768144649136,0.09471662,90981.0,90966.0,0.011007]
[1768144651951,0.09471662,90981.0,90968.0,0.011007]